bitfinex/quotes_SOLUSD_20251116
["timestamp","ask_amount","ask_price","bid_price","bid_amount"]
[1763316810241,12.60148456,138.62,138.6,7.76]
[1763316810624,12.60148456,138.61,138.6,7.76]
[1763316811008,9.78882769,138.66,138.6,7.76]
[1763316811219,12.60148456,138.63,138.6,7.76]
[1763316811606,12.60148456,138.62,138.6,7.76]
[1763316812223,72.6512,138.67,138.6,7.76]
[1763316812224,22.39031225,138.61,138.6,7.76]
[1763316812436,27.16673825,138.61,138.6,7.76]
[1763316812650,149.81793825,138.61,138.6,7.76]
[1763316812951,112.41942281,138.61,138.6,7.76]
[1763316813252,149.81793825,138.61,138.6,7.76]
[1763316813455,82.44002769,138.58,138.41,7.22491149]
[1763316813619,82.44002769,138.58,138.47,0.69]
[1763316813620,12.60148456,138.51,138.47,0.69]
[1763316813948,12.60148456,138.53,138.48,12.60148456]
[1763316814240,12.60148456,138.52,138.47,13.29148456]
[1763316814480,0.7,138.6,138.47,0.69]
[1763316814613,12.60148456,138.57,138.52,12.60148456]
[1763316814813,12.60148456,138.56,138.51,12.60148456]
[1763316815044,12.60148456,138.57,138.52,12.60148456]
[1763316815214,12.60148456,138.58,138.52,12.60148456]
[1763316815420,12.60148456,138.58,138.51,0.69]
[1763316815640,12.60148456,138.56,138.51,12.60148456]
[1763316816043,12.60148456,138.56,138.51,13.29148456]
[1763316816462,0.7,138.58,138.52,0.69]
[1763316816463,12.60148456,138.57,138.52,0.69]
[1763316816691,5.96592462,138.65,138.56,12.60148456]
[1763316816999,13.30148456,138.64,138.5,12.60148456]
[1763316817170,13.30148456,138.64,138.55,12.60148456]
[1763316817171,12.60148456,138.6,138.55,12.60148456]
[1763316817473,12.60148456,138.6,138.55,0.69]
[1763316817642,12.60148456,138.6,138.55,13.29148456]
[1763316817844,12.60148456,138.61,138.56,13.29148456]
[1763316818085,12.60148456,138.61,138.56,12.60148456]
[1763316818243,22.6512,138.64,138.57,12.60148456]
[1763316818440,12.60148456,138.62,138.57,13.29148456]
[1763316818871,12.60148456,138.64,138.59,12.60148456]
[1763316819080,4.80768671,138.63,138.59,12.60148456]
[1763316819253,13.30148456,138.63,138.58,12.60148456]
[1763316819444,4.81473262,138.62,138.56,0.69]
[1763316819641,13.30148456,138.63,138.58,12.60148456]
[1763316819888,4.81495593,138.62,138.58,12.60148456]
[1763316820060,4.81495593,138.61,138.58,12.60148456]
[1763316820251,22.39031225,138.65,138.6,12.60148456]
[1763316820579,4.8180209,138.64,138.6,12.60148456]
[1763316820782,12.60148456,138.61,138.52,0.69]
[1763316821075,12.60148456,138.59,138.54,12.60148456]
[1763316821460,27.91562227,138.58,138.53,12.60148456]
[1763316821673,17.42679458,138.57,138.52,13.29148456]
[1763316821880,9.78882769,138.58,138.53,12.60148456]
[1763316822179,17.42708534,138.57,138.51,0.69]
[1763316822386,4.8306644,138.56,138.52,12.60148456]
[1763316822674,12.60148456,138.57,138.52,12.60148456]
[1763316822848,4.8308841,138.56,138.52,12.60148456]
[1763316823049,4.8309948,138.55,138.52,12.60148456]
[1763316823251,12.60148456,138.56,138.5,0.69]
[1763316823465,0.7,138.57,138.52,12.60148456]
[1763316823668,4.83596247,138.56,138.51,0.69]
[1763316823872,29.36139271,138.6,138.54,12.60148456]
[1763316823873,9.78882769,138.59,138.54,12.60148456]
[1763316824080,4.83535117,138.58,138.55,12.60148456]
[1763316824258,13.30148456,138.6,138.55,12.60148456]
[1763316824463,4.84035287,138.59,138.55,12.60148456]
[1763316824780,4.84035287,138.58,138.55,12.60148456]
[1763316824950,4.84035287,138.57,138.55,12.60148456]
[1763316825155,13.30148456,138.6,138.55,12.60148456]
[1763316825482,4.84057297,138.59,138.55,12.60148456]
[1763316825659,4.84057297,138.59,138.52,0.69]
[1763316825660,4.84057297,138.58,138.54,12.60148456]
[1763316825860,4.84057297,138.57,138.55,12.60148456]
[1763316826069,12.60148456,138.63,138.56,13.29148456]
[1763316826255,16.4990204,138.64,138.57,0.69]
[1763316826256,4.84017485,138.62,138.57,0.69]
[1763316826461,6.71019271,138.65,138.61,12.60148456]
[1763316826773,4.83975057,138.64,138.6,12.60148456]
[1763316826959,4.83975057,138.63,138.6,12.60148456]
[1763316827163,4.83975057,138.62,138.61,12.60148456]
[1763316827489,4.83975057,138.62,138.6,12.60148456]
[1763316827656,13.30148456,138.65,138.6,12.60148456]
[1763316827859,9.78882769,138.63,138.55,22.6512]
[1763316828079,4.83965148,138.62,138.59,12.60148456]
[1763316828263,9.78882769,138.59,138.49,0.69]
[1763316828481,17.44230642,138.58,138.52,12.60148456]
[1763316828683,4.84082186,138.57,138.54,12.60148456]
[1763316828869,12.60148456,138.59,138.54,12.60148456]
[1763316829189,17.44353016,138.58,138.53,12.60148456]
[1763316829373,12.60148456,138.58,138.53,12.60148456]
[1763316830291,18.1438496,138.57,138.51,0.69]
[1763316830478,12.60148456,138.54,138.49,12.60148456]
[1763316830812,12.60148456,138.54,138.48,0.69]
[1763316831091,22.39031225,138.53,138.48,12.60148456]
[1763316831262,22.39031225,138.53,138.45,0.69]
[1763316831466,12.60148456,138.49,138.4,12.60148456]
[1763316831790,9.78882769,138.5,138.4,0.69]
[1763316831791,12.60148456,138.46,138.4,0.69]
[1763316831969,12.60148456,138.46,138.41,12.60148456]
[1763316832165,12.60148456,138.45,138.4,0.69]
[1763316832375,12.60148456,138.45,138.4,12.60148456]
[1763316832676,12.60148456,138.45,138.4,13.29148456]
[1763316832880,12.60148456,138.46,138.37,22.8512]
[1763316833195,22.6512,138.4,138.37,0.2]
[1763316833393,50.0,138.41,138.37,12.80148456]
[1763316833577,10.85196707,138.45,138.37,0.2]
[1763316833578,55.54177436,138.45,138.37,0.2]
[1763316833888,12.60148456,138.44,138.37,0.2]
[1763316834094,0.7,138.45,138.39,12.60148456]
[1763316834266,14.62474058,138.46,138.41,12.60148456]
[1763316834475,0.7,138.48,138.43,12.60148456]
[1763316834679,13.30148456,138.48,138.44,12.60148456]
[1763316834907,13.30148456,138.48,138.37,25.49445026]
[1763316834908,13.30148456,138.48,138.43,12.60148456]
[1763316835404,22.39031225,138.46,138.42,12.60148456]
[1763316835605,22.39031225,138.46,138.41,12.60148456]
[1763316835909,13.30148456,138.47,138.42,12.60148456]
[1763316836204,13.30148456,138.47,138.38,0.69]
[1763316836205,12.60148456,138.47,138.43,12.60148456]
[1763316836404,0.7,138.5,138.45,12.60148456]
[1763316836598,13.30148456,138.5,138.45,12.60148456]
[1763316837189,0.7,138.5,138.45,12.60148456]
[1763316837392,0.7,138.49,138.45,12.60148456]
[1763316838087,0.7,138.49,138.42,0.69]
[1763316838293,9.78882769,138.51,138.47,12.60148456]
[1763316838694,17.42398011,138.51,138.47,12.60148456]
[1763316838888,12.60148456,138.51,138.47,12.60148456]
[1763316839204,17.34,138.54,138.48,13.29148456]
[1763316839398,22.39031225,138.53,138.42,22.6512]
[1763316839708,22.39031225,138.53,138.48,12.60148456]
[1763316839709,12.60148456,138.52,138.48,12.60148456]
[1763316839911,12.60148456,138.52,138.43,0.69]
[1763316839912,12.60148456,138.52,138.47,12.60148456]
[1763316840091,10.48882769,138.53,138.47,12.60148456]
[1763316840291,12.60148456,138.52,138.46,0.7]
[1763316840491,12.60148456,138.52,138.4,12.60148456]
[1763316840492,27.21236635,138.51,138.43,0.7]
[1763316840689,0.68,138.52,138.48,12.60148456]
[1763316840887,5.50161231,138.52,138.48,12.60148456]
[1763316841088,22.39031225,138.49,138.4,0.7]
[1763316841291,4.82161231,138.51,138.42,12.60148456]
[1763316841292,9.78882769,138.46,138.42,12.60148456]
[1763316841582,4.82274764,138.47,138.44,12.60148456]
[1763316841785,4.82274764,138.47,138.43,12.60148456]
[1763316841979,0.68,138.46,138.42,12.60148456]
[1763316842180,13.28148456,138.46,138.42,12.60148456]
[1763316842406,10.46882769,138.46,138.42,12.60148456]
[1763316842614,10.46882769,138.46,138.38,0.7]
[1763316842910,7.25465432,138.45,138.41,7.25465432]
[1763316843112,4.82044854,138.45,138.41,7.25465432]
[1763316843317,4.82044854,138.45,138.42,7.25465432]
[1763316843612,12.75510286,138.45,138.41,7.25465432]
[1763316843781,12.75510286,138.45,138.38,0.7]
[1763316843782,9.78882769,138.44,138.4,7.25465432]
[1763316843986,17.04348201,138.42,138.37,7.45465432]
[1763316844208,7.25465432,138.4,138.37,0.2]
[1763316844406,7.25465432,138.41,138.37,0.2]
[1763316844622,9.78882769,138.38,138.37,0.2]
[1763316844824,17.04348201,138.38,138.37,0.2]
[1763316844997,22.54001292,138.38,138.37,0.2]
[1763316845201,73.3312,138.43,138.37,7.45465432]
[1763316845404,12.74490228,138.42,138.37,7.45465432]
[1763316845595,4.81024796,138.42,138.39,7.25465432]
[1763316845830,0.68,138.45,138.37,0.9]
[1763316845831,30.58585432,138.45,138.4,7.25465432]
[1763316846196,50.0,138.47,138.42,7.25465432]
[1763316846197,7.25465432,138.46,138.42,7.25465432]
[1763316846405,12.06106549,138.46,138.41,7.25465432]
[1763316846723,0.68,138.45,138.41,7.25465432]
[1763316847117,7.93465432,138.45,138.4,7.25465432]
[1763316847305,7.93465432,138.45,138.38,0.7]
[1763316847306,7.25465432,138.44,138.39,7.25465432]
[1763316847504,7.25465432,138.43,138.39,7.25465432]
[1763316847705,12.74106549,138.43,138.39,7.25465432]
[1763316848012,4.80641117,138.43,138.4,7.25465432]
[1763316848202,0.68,138.51,138.42,7.25465432]
[1763316848405,4.80346814,138.5,138.46,7.25465432]
[1763316848605,18.02,138.54,138.48,7.25465432]
[1763316848805,18.02,138.54,138.5,7.25465432]
[1763316848806,25.27465432,138.54,138.5,7.25465432]
[1763316849001,18.02,138.54,138.5,7.25465432]
[1763316849212,7.25465432,138.53,138.49,7.25465432]
[1763316849422,12.73599838,138.53,138.49,7.25465432]
[1763316849643,12.73599838,138.53,138.47,7.25465432]
[1763316849644,0.68,138.52,138.47,7.25465432]
[1763316849809,0.68,138.52,138.44,0.7]
[1763316849810,4.80134406,138.52,138.49,7.25465432]
[1763316850022,17.34,138.54,138.5,7.25465432]
[1763316850636,18.02,138.54,138.5,7.25465432]
[1763316851025,17.34,138.54,138.5,7.25465432]
[1763316851536,7.93465432,138.53,138.44,0.7]
[1763316851746,12.73760431,138.53,138.48,7.25465432]
[1763316851921,12.73760431,138.53,138.4,7.25465432]
[1763316851922,22.6512,138.55,138.51,7.25465432]
[1763316852121,29.90585432,138.55,138.51,7.25465432]
[1763316852339,30.58585432,138.55,138.51,7.25465432]
[1763316852539,30.58585432,138.55,138.4,7.25465432]
[1763316852540,7.25465432,138.52,138.45,0.7]
[1763316852740,7.25465432,138.52,138.4,17.04348201]
[1763316852741,7.25465432,138.5,138.46,7.25465432]
[1763316852941,7.25465432,138.48,138.4,7.25465432]
[1763316853153,7.25465432,138.5,138.45,7.25465432]
[1763316853542,7.93465432,138.5,138.45,7.25465432]
[1763316854432,0.68,138.5,138.46,7.25465432]
[1763316854634,0.68,138.5,138.42,0.7]
[1763316854841,7.25465432,138.49,138.45,7.25465432]
[1763316855237,12.05973421,138.51,138.46,7.25465432]
[1763316855441,7.25465432,138.47,138.41,0.68]
[1763316855655,7.25465432,138.46,138.41,7.25465432]
[1763316855943,7.25465432,138.44,138.39,7.25465432]
[1763316856142,7.25465432,138.47,138.42,7.25465432]
[1763316856352,7.25465432,138.46,138.41,7.25465432]
[1763316856650,60.46882769,138.47,138.42,7.25465432]
[1763316856845,60.46882769,138.47,138.41,7.25465432]
[1763316856846,7.25465432,138.45,138.41,7.25465432]
[1763316857426,7.93465432,138.44,138.39,7.25465432]
[1763316857632,7.93465432,138.44,138.38,0.68]
[1763316857633,0.68,138.44,138.37,0.2]
[1763316857831,7.25465432,138.42,138.37,7.45465432]
[1763316858019,7.25465432,138.43,138.38,7.25465432]
[1763316858223,7.25465432,138.42,138.38,7.25465432]
[1763316858421,7.25465432,138.43,138.37,0.2]
[1763316858622,7.25465432,138.43,138.38,7.25465432]
[1763316858851,0.68,138.44,138.39,7.25465432]
[1763316858852,7.93465432,138.44,138.39,7.25465432]
[1763316859061,7.25465432,138.46,138.41,7.25465432]
[1763316859221,17.04348201,138.47,138.42,7.25465432]
[1763316859424,7.25465432,138.46,138.41,7.25465432]
[1763316859665,7.25465432,138.46,138.42,7.25465432]
[1763316860044,7.25465432,138.47,138.43,7.25465432]
[1763316860846,7.25465432,138.48,138.43,7.25465432]
[1763316861079,12.74063974,138.48,138.43,7.25465432]
[1763316861258,12.06063974,138.48,138.41,0.68]
[1763316861458,12.74063974,138.48,138.43,7.25465432]
[1763316861656,5.48598542,138.48,138.44,7.25465432]
[1763316861967,50.0,138.49,138.45,7.25465432]
[1763316862170,7.93465432,138.48,138.39,0.68]
[1763316862382,12.74155742,138.48,138.4,7.93465432]
[1763316862683,12.74155742,138.48,138.43,7.25465432]
[1763316863398,5.4869031,138.47,138.4,0.68]
[1763316863670,12.74155742,138.48,138.4,0.68]
[1763316864053,4.8069031,138.47,138.43,7.25465432]
[1763316864256,12.74155742,138.48,138.43,7.25465432]
[1763316864460,4.8069031,138.47,138.43,7.25465432]
[1763316864871,50.0,138.49,138.44,0.68]
[1763316865162,57.25465432,138.49,138.44,7.25465432]
[1763316865368,7.25465432,138.47,138.42,7.25465432]
[1763316865557,5.49587097,138.47,138.43,7.25465432]
[1763316865765,0.68,138.47,138.43,7.25465432]
[1763316865953,4.81571185,138.47,138.43,7.25465432]
[1763316866162,7.25465432,138.48,138.44,7.25465432]
[1763316866362,4.8174848,138.47,138.44,7.25465432]
[1763316866876,7.25465432,138.48,138.44,7.25465432]
[1763316867058,4.81754638,138.47,138.44,7.25465432]
[1763316867669,9.78882769,138.51,138.46,7.25465432]
[1763316867670,17.04348201,138.51,138.46,7.25465432]
[1763316867847,17.04348201,138.51,138.37,48.14565817]
[1763316867848,7.25465432,138.47,138.39,0.68]
[1763316868048,7.25465432,138.46,138.42,7.25465432]
[1763316868249,12.07444108,138.47,138.42,7.25465432]
[1763316868474,7.25465432,138.47,138.42,7.25465432]
[1763316868779,7.93465432,138.47,138.43,7.25465432]
[1763316868961,7.25465432,138.46,138.42,7.25465432]
[1763316869164,7.25465432,138.43,138.37,0.2]
[1763316869371,7.25465432,138.42,138.38,7.25465432]
[1763316869582,7.25465432,138.41,138.37,0.2]
[1763316869872,50.68,138.42,138.37,0.2]
[1763316870076,7.25465432,138.4,138.37,0.2]
[1763316870279,7.96465432,138.39,138.37,0.2]
[1763316870576,4.82500255,138.39,138.37,0.2]
[1763316870777,12.79165895,138.39,138.37,0.2]
[1763316870950,12.08165895,138.38,138.37,0.2]
[1763316871150,72.58048664,138.38,138.37,0.2]
[1763316872789,4.82700463,138.38,138.37,0.2]
[1763316872955,17.04348201,138.41,138.37,7.45465432]
[1763316873153,5.54114781,138.4,138.37,0.2]
[1763316873390,4.83114781,138.39,138.37,0.2]
[1763316873575,17.75348201,138.41,138.37,0.2]
[1763316873776,9.78882769,138.39,138.37,0.2]
[1763316873981,12.79894986,138.38,138.37,0.2]
[1763316874365,72.58777755,138.38,138.37,0.2]
[1763316874566,122.58777755,138.38,138.37,0.2]
[1763316874772,50.0,138.34,138.28,7.45465432]
[1763316874979,12.08894986,138.33,138.28,7.45465432]
[1763316875298,29.90585432,138.35,138.3,7.25465432]
[1763316875472,4.83802027,138.34,138.32,7.25465432]
[1763316875656,4.83802027,138.33,138.31,0.69]
[1763316875999,4.83719408,138.36,138.32,7.25465432]
[1763316876298,4.83719408,138.35,138.32,7.94465432]
[1763316876471,0.71,138.37,138.33,7.25465432]
[1763316876668,4.83777915,138.36,138.34,7.25465432]
[1763316876873,67.04348201,138.4,138.35,7.25465432]
[1763316877067,4.8373529,138.39,138.37,7.25465432]
[1763316877261,50.0,138.4,138.37,7.25465432]
[1763316877504,4.83599043,138.39,138.33,0.69]
[1763316877805,4.83605966,138.38,138.35,7.25465432]
[1763316877991,4.83605966,138.37,138.34,7.25465432]
[1763316878169,4.83579961,138.36,138.34,7.25465432]
[1763316878502,7.25465432,138.38,138.34,7.25465432]
[1763316878671,4.83591882,138.37,138.34,7.25465432]
[1763316878867,7.25465432,138.39,138.35,7.25465432]
[1763316879101,4.83593188,138.38,138.35,7.25465432]
[1763316879281,50.0,138.4,138.36,7.25465432]
[1763316879484,4.83403103,138.39,138.35,7.94465432]
[1763316879667,4.8343313,138.38,138.32,0.69]
[1763316879863,7.25465432,138.39,138.35,7.25465432]
[1763316880067,50.0,138.4,138.32,0.69]
[1763316880068,4.83441214,138.38,138.32,0.69]
[1763316880294,7.25465432,138.39,138.35,7.25465432]
[1763316880480,4.83359587,138.38,138.35,7.25465432]
[1763316880685,0.71,138.39,138.35,7.25465432]
[1763316880994,4.83376274,138.38,138.35,7.25465432]
[1763316881182,7.96465432,138.39,138.35,7.25465432]
[1763316881377,4.83280175,138.39,138.37,7.25465432]
[1763316881586,29.90585432,138.42,138.38,7.25465432]
[1763316881796,4.8320857,138.41,138.38,7.25465432]
[1763316882089,9.78882769,138.44,138.4,7.25465432]
[1763316882267,4.83193676,138.43,138.4,7.25465432]
[1763316882467,4.83193676,138.43,138.32,7.25465432]
[1763316882468,21.87575034,138.42,138.32,7.25465432]
[1763316882703,7.25465432,138.4,138.33,0.69]
[1763316882874,4.83226833,138.39,138.35,7.25465432]
[1763316883197,57.96465432,138.41,138.36,7.25465432]
[1763316883367,4.83293065,138.4,138.36,7.25465432]
[1763316883568,4.83293065,138.4,138.37,7.25465432]
[1763316883774,4.83293065,138.4,138.34,0.69]
[1763316884011,7.25465432,138.38,138.33,7.25465432]
[1763316884174,17.04348201,138.4,138.35,7.25465432]
[1763316884377,4.83295592,138.39,138.33,0.69]
[1763316884595,4.83295592,138.39,138.35,7.25465432]
[1763316884804,7.25465432,138.4,138.35,7.25465432]
[1763316885016,4.83444691,138.39,138.35,0.69]
[1763316885179,4.83427152,138.39,138.35,0.69]
[1763316885510,7.25465432,138.4,138.35,0.69]
[1763316886007,4.83433186,138.39,138.35,0.69]
[1763316886312,4.83433186,138.39,138.28,22.8512]
[1763316886313,7.25465432,138.36,138.29,0.69]
[1763316886472,7.25465432,138.36,138.31,7.25465432]
[1763316886790,7.25465432,138.34,138.29,7.25465432]
[1763316887106,7.25465432,138.33,138.28,7.45465432]
[1763316887313,7.25465432,138.32,138.28,0.2]
[1763316887617,7.96465432,138.32,138.28,0.2]
[1763316887903,50.71,138.31,138.28,0.2]
[1763316888109,7.25465432,138.3,138.28,0.2]
[1763316888311,50.0,138.31,138.28,0.2]
[1763316888480,7.25465432,138.3,138.28,0.2]
[1763316888807,7.96465432,138.3,138.28,0.2]
[1763316889116,0.71,138.3,138.28,0.2]
[1763316889319,50.0,138.33,138.29,0.69]
[1763316889614,73.3612,138.35,138.3,7.25465432]
[1763316889818,57.96465432,138.37,138.29,0.69]
[1763316890193,7.25465432,138.36,138.32,7.25465432]
[1763316890383,50.0,138.39,138.33,7.25465432]
[1763316890588,7.25465432,138.4,138.35,7.25465432]
[1763316890803,27.47786264,138.4,138.35,7.25465432]
[1763316890986,30.61585432,138.4,138.35,7.25465432]
[1763316891183,7.96465432,138.4,138.35,7.25465432]
[1763316891396,12.08082826,138.4,138.35,7.25465432]
[1763316891599,0.71,138.39,138.35,7.25465432]
[1763316892083,12.08082826,138.4,138.35,7.25465432]
[1763316892290,12.79082826,138.4,138.35,7.25465432]
[1763316892782,7.96465432,138.39,138.33,0.69]
[1763316893117,4.82617394,138.4,138.36,7.25465432]
[1763316893327,9.78882769,138.42,138.37,7.25465432]
[1763316893328,17.04348201,138.42,138.37,7.25465432]
[1763316893486,7.25465432,138.42,138.38,7.25465432]
[1763316893904,72.6512,138.43,138.38,7.25465432]
[1763316894213,80.61585432,138.43,138.38,7.25465432]
[1763316894412,50.0,138.43,138.39,7.25465432]
[1763316894913,0.71,138.42,138.38,7.25465432]
[1763316895214,0.71,138.42,138.35,0.69]
[1763316895516,57.25465432,138.43,138.35,0.69]
[1763316895722,4.82931187,138.42,138.38,7.25465432]
[1763316896011,12.79377255,138.42,138.37,7.25465432]
[1763316896177,5.53911823,138.42,138.38,7.25465432]
[1763316896382,5.53911823,138.42,138.35,0.69]
[1763316896383,57.25465432,138.43,138.39,7.25465432]
[1763316896582,17.38,138.45,138.41,7.25465432]
[1763316896981,17.38,138.45,138.42,7.25465432]
[1763316897182,7.96465432,138.47,138.42,7.25465432]
[1763316897421,54.83450985,138.46,138.43,7.25465432]
[1763316897584,50.0,138.46,138.43,7.25465432]
[1763316897787,57.96465432,138.46,138.42,7.25465432]
[1763316898319,57.96465432,138.46,138.39,0.69]
[1763316898527,50.0,138.46,138.42,7.25465432]
[1763316898699,57.25465432,138.46,138.42,7.25465432]
[1763316899211,57.96465432,138.46,138.42,7.25465432]
[1763316899595,57.96465432,138.46,138.39,0.69]
[1763316899596,7.96465432,138.45,138.4,7.25465432]
[1763316899818,12.80120157,138.45,138.39,0.69]
[1763316900108,12.80120157,138.45,138.4,7.25465432]
[1763316900314,4.83654725,138.45,138.42,7.25465432]
[1763316900519,50.0,138.46,138.41,7.25465432]
[1763316900686,50.0,138.46,138.42,7.25465432]
[1763316900895,50.0,138.46,138.43,7.25465432]
[1763316901113,6.04824087,138.53,138.45,7.25465432]
[1763316901315,6.04824087,138.53,138.4,7.25465432]
[1763316901316,0.1,138.54,138.52,7.25465432]
[1763316901787,7.96465432,138.53,138.36,1.99999999]
[1763316901998,7.25465432,138.51,138.44,0.69]
[1763316902238,7.25465432,138.48,138.38,22.6512]
[1763316902409,12.0880022,138.49,138.44,7.25465432]
[1763316902614,4.83334788,138.49,138.47,7.25465432]
[1763316902795,12.62009557,138.5,138.45,12.62009557]
[1763316902986,12.62009557,138.49,138.44,12.62009557]
[1763316903187,50.0,138.52,138.47,12.62009557]
[1763316903387,59.88882769,138.54,138.49,12.62009557]
[1763316903586,95.16012326,138.54,138.49,12.62009557]
[1763316903818,82.54002769,138.54,138.49,13.31009557]
[1763316904004,63.43009557,138.54,138.49,12.62009557]
[1763316904207,0.71,138.53,138.43,0.69]
[1763316904389,27.48017179,138.53,138.49,12.62009557]
[1763316904591,0.1,138.54,138.51,12.62009557]
[1763316904791,0.1,138.54,138.52,12.62009557]
[1763316905106,50.0,138.62,138.53,13.31009557]
[1763316905309,50.0,138.64,138.54,0.69]
[1763316905626,50.0,138.64,138.59,12.62009557]
[1763316905917,50.72,138.64,138.59,12.62009557]
[1763316906118,63.34009557,138.64,138.59,12.62009557]
[1763316906292,63.34009557,138.64,138.57,0.69]
[1763316906492,50.0,138.64,138.59,12.62009557]
[1763316906925,62.62009557,138.67,138.63,12.62009557]
[1763316907124,62.72009557,138.69,138.64,12.62009557]
[1763316907423,0.1,138.69,138.65,0.69]
[1763316907602,12.62009557,138.68,138.64,12.62009557]
[1763316907801,12.62009557,138.65,138.51,0.69]
[1763316907992,12.62009557,138.64,138.59,12.62009557]
[1763316908317,12.62009557,138.64,138.54,12.62009557]
[1763316908318,12.62009557,138.6,138.54,12.62009557]
[1763316908627,12.62009557,138.61,138.56,12.62009557]
[1763316909107,50.0,138.65,138.59,12.62009557]
[1763316909291,12.62009557,138.64,138.6,12.62009557]
[1763316909491,33.16002769,138.66,138.6,12.62009557]
[1763316909694,12.62009557,138.64,138.59,12.62009557]
[1763316909890,12.62009557,138.6,138.55,12.62009557]
[1763316910222,50.0,138.57,138.5,0.69]
[1763316910530,12.62009557,138.56,138.52,12.62009557]
[1763316910895,50.0,138.57,138.52,12.62009557]
[1763316911110,12.62009557,138.56,138.52,12.62009557]
[1763316911310,12.62009557,138.55,138.5,0.69]
[1763316911501,12.62009557,138.55,138.5,13.31009557]
[1763316911690,12.62009557,138.55,138.5,0.69]
[1763316911886,12.62009557,138.54,138.5,12.62009557]
[1763316912085,12.62009557,138.54,138.5,13.31009557]
[1763316912491,0.72,138.61,138.51,0.69]
[1763316912693,12.62009557,138.58,138.43,1.99999999]
[1763316913020,0.72,138.6,138.43,1.99999999]
[1763316913021,12.62009557,138.56,138.51,12.62009557]
[1763316913234,22.6512,138.59,138.51,12.62009557]
[1763316913235,12.62009557,138.55,138.51,12.62009557]
[1763316913394,12.62009557,138.55,138.49,0.69]
[1763316913395,12.62009557,138.55,138.5,12.62009557]
[1763316913600,12.62009557,138.55,138.49,0.69]
[1763316913601,12.62009557,138.56,138.52,12.62009557]
[1763316913920,12.62009557,138.57,138.49,0.69]
[1763316914103,50.72,138.58,138.49,0.69]
[1763316914104,50.72,138.58,138.53,12.62009557]
[1763316914305,62.62009557,138.58,138.53,12.62009557]
[1763316914518,12.62009557,138.57,138.51,0.69]
[1763316914832,63.34009557,138.58,138.54,12.62009557]
[1763316915029,62.62009557,138.58,138.54,12.62009557]
[1763316915200,8.04824086,138.66,138.56,12.62009557]
[1763316915201,50.0,138.61,138.56,12.62009557]
[1763316915405,23.70374388,138.68,138.59,12.62009557]
[1763316915406,50.69,138.64,138.59,12.62009557]
[1763316915606,63.31009557,138.64,138.59,12.62009557]
[1763316915807,12.62009557,138.6,138.49,22.6512]
[1763316916143,12.62009557,138.6,138.55,12.62009557]
[1763316916505,13.31009557,138.6,138.55,12.62009557]
[1763316916705,50.0,138.62,138.56,12.62009557]
[1763316916706,12.62009557,138.61,138.56,12.62009557]
[1763316916928,12.62009557,138.58,138.42,1.99999999]
[1763316917251,12.62009557,138.57,138.5,0.72]
[1763316917410,12.62009557,138.57,138.53,12.62009557]
[1763316917740,13.31009557,138.58,138.53,12.62009557]
[1763316917910,12.62009557,138.56,138.51,12.62009557]
[1763316918106,12.62009557,138.52,138.4,12.82009557]
[1763316918304,50.0,138.54,138.46,12.62009557]
[1763316918305,12.62009557,138.5,138.46,12.62009557]
[1763316918532,12.62009557,138.48,138.41,0.72]
[1763316918723,12.62009557,138.46,138.41,12.62009557]
[1763316918928,12.62009557,138.46,138.4,0.2]
[1763316918929,12.62009557,138.44,138.4,0.2]
[1763316919128,12.62009557,138.46,138.41,12.62009557]
[1763316919311,12.62009557,138.45,138.4,0.2]
[1763316919522,50.0,138.47,138.4,0.2]
[1763316919523,50.0,138.47,138.41,12.62009557]
[1763316919713,59.78882769,138.49,138.41,0.72]
[1763316919923,12.62009557,138.48,138.44,12.62009557]
[1763316920229,62.62009557,138.49,138.44,12.62009557]
[1763316920406,62.62009557,138.49,138.42,0.72]
[1763316920602,50.0,138.49,138.44,12.62009557]
[1763316920807,12.62009557,138.48,138.42,0.72]
[1763316921040,12.62009557,138.47,138.42,12.62009557]
[1763316921243,12.62009557,138.46,138.41,12.62009557]
[1763316921540,9.78882769,138.48,138.41,0.72]
[1763316921725,12.62009557,138.48,138.44,12.62009557]
[1763316921930,12.62009557,138.46,138.42,12.62009557]
[1763316922125,12.62009557,138.45,138.41,12.62009557]
[1763316922328,9.78882769,138.49,138.43,12.62009557]
[1763316922329,22.40892326,138.48,138.43,12.62009557]
[1763316922719,9.78882769,138.51,138.46,12.62009557]
[1763316922924,9.78882769,138.51,138.4,0.2]